bitfinex/quotes_ETHUSD_20250110
["timestamp","ask_amount","ask_price","bid_price","bid_amount"]
[1736545741663,0.04663581,3274.4,3273.7,0.5575]
[1736545748686,0.04663581,3274.4,3273.9,0.0075]
[1736545748915,0.04663581,3274.4,3274.1,0.5575]
[1736545749216,0.04598756,3274.3,3274.1,0.995833]
[1736545749658,0.7945,3274.9,3274.1,4.08062402]
[1736545749860,0.0459457,3274.2,3274.1,4.050083]
[1736545750122,0.7945,3274.9,3274.1,4.050083]
[1736545750466,0.0464092,3274.8,3274.1,4.050083]
[1736545750662,0.0464092,3274.8,3274.3,0.5575]
[1736545750862,0.0464092,3274.8,3274.3,0.0075]
[1736545751065,0.0464092,3274.8,3274.6,0.55]
[1736545751651,0.0462459,3274.7,3274.6,0.5575]
[1736545752108,0.8237,3275.1,3274.6,0.5575]
[1736545752277,0.04656395,3274.7,3274.6,0.5575]
[1736545752488,0.8237,3275.1,3274.6,0.9976306]
[1736545752699,0.04656395,3274.7,3274.6,0.9976306]
[1736545753025,0.8237,3275.1,3274.6,0.9976306]
[1736545753385,0.04682541,3275.0,3274.6,0.9976306]
[1736545755304,0.04682541,3275.0,3274.6,0.5575]
[1736545756215,0.04682541,3275.0,3274.3,0.7887]
[1736545756506,3.10027541,3275.0,3274.4,0.5575]
[1736545757593,0.04682541,3275.0,3274.4,0.5575]
[1736545760809,0.8172,3274.9,3274.4,0.58803797]
[1736545760985,0.8172,3274.9,3274.4,0.5575]
[1736545761187,0.04695839,3274.8,3274.3,0.0075]
[1736545762080,0.04695839,3274.8,3274.1,0.0075]
[1736545766272,2.55777152,3274.5,3273.1,0.7887]
[1736545766527,2.55777152,3274.5,3273.4,0.7887]
[1736545766528,0.8107,3274.3,3273.4,0.7887]
[1736545766705,0.8107,3274.3,3273.5,0.0075]
[1736545766913,0.04661092,3274.2,3273.5,0.5575]
[1736545770793,2.60438244,3274.2,3273.5,0.5575]
[1736545771691,0.04661092,3274.2,3273.5,0.5575]
[1736545774631,0.04661092,3274.2,3273.9,0.0075]
[1736545774928,0.04661092,3274.2,3274.0,0.55]
[1736545775130,0.8107,3274.6,3274.0,0.55]
[1736545775307,0.04451713,3274.1,3274.0,0.5575]
[1736545775509,0.8107,3274.6,3274.0,0.5575]
[1736545775709,0.0446064,3274.1,3274.0,0.5575]
[1736545775904,0.8107,3274.6,3274.0,0.5575]
[1736545776124,0.04451713,3274.1,3274.0,0.5575]
[1736545776437,0.04468536,3274.1,3274.0,0.5575]
[1736545776733,0.8107,3274.6,3274.0,0.5575]
[1736545776892,0.04470768,3274.1,3274.0,0.5575]
[1736545777089,0.8107,3274.6,3274.0,0.5575]
[1736545777331,0.04468536,3274.1,3274.0,0.5575]
[1736545777527,0.8107,3274.6,3274.0,0.5575]
[1736545777729,0.04468536,3274.1,3274.0,0.5575]
[1736545777971,0.8107,3274.6,3274.0,0.5575]
[1736545778100,0.04470768,3274.1,3273.7,0.55]
[1736545778308,0.7521,3274.2,3273.7,0.55]
[1736545778534,0.04478501,3274.0,3273.8,0.0075]
[1736545778733,0.7521,3274.2,3273.4,3.05488]
[1736545778734,0.04481974,3274.1,3273.4,3.05488]
[1736545779031,0.7521,3274.2,3273.5,0.5575]
[1736545779635,0.04486437,3274.1,3273.5,0.5575]
[1736545790258,0.04486437,3274.1,3273.4,0.5575]
[1736545790623,0.8197,3274.0,3273.4,0.0075]
[1736545790828,0.04429129,3273.9,3273.4,0.0075]
[1736545791360,3.87408,3274.0,3273.3,0.0075]
[1736545791859,0.04429129,3273.9,3273.3,0.0075]
[1736545794055,0.04429129,3273.9,3273.2,0.55]
[1736545794056,2.55777152,3273.6,3272.7,2.75487612]
[1736545794216,3.82945,3273.5,3272.7,2.75487612]
[1736545794417,0.81879226,3273.4,3272.8,0.0075]
[1736545795556,0.81879226,3273.4,3272.8,0.5575]
[1736545801326,3.09913226,3273.4,3272.8,0.5575]
[1736545801553,1.06351323,3273.3,3272.8,0.55]
[1736545801726,0.7536,3273.3,3272.8,0.55]
[1736545801927,0.0439281,3273.2,3272.8,0.55]
[1736545802359,0.7536,3273.3,3272.8,0.55]
[1736545802567,0.7747,3273.0,3272.8,0.55]
[1736545802948,0.04347935,3272.9,3272.8,0.55]
[1736545808333,0.04347935,3272.9,3272.7,2.75487612]
[1736545808769,0.38107444,3272.9,3272.1,3.05605]
[1736545809573,0.38107444,3272.9,3272.1,0.5575]
[1736545809869,0.7763,3272.6,3271.7,3.86367]
[1736545810058,3.83199,3272.6,3271.7,3.86367]
[1736545810253,0.81911287,3272.5,3271.7,0.8072]
[1736545810455,2.55777152,3272.4,3271.7,0.8072]
[1736545810660,2.90484201,3272.4,3271.7,0.8072]
[1736545810966,0.04267177,3272.3,3271.7,0.8072]
[1736545811345,0.04267177,3272.3,3271.9,0.0075]
[1736545811732,0.7763,3272.5,3271.9,0.0075]
[1736545811931,0.04227323,3272.2,3271.9,0.0075]
[1736545812132,5.38,3272.8,3271.9,0.0075]
[1736545812370,0.04216379,3272.1,3272.0,4.4209]
[1736545812535,0.7763,3272.7,3272.1,0.0075]
[1736545812931,0.04254373,3272.6,3272.3,0.0075]
[1736545813169,0.04254373,3272.6,3272.4,0.55]
[1736545813535,5.38,3272.8,3272.4,0.55]
[1736545813873,0.04252398,3272.5,3272.4,0.5575]
[1736545814074,5.38,3272.8,3272.4,0.5575]
[1736545814429,0.04265349,3272.7,3272.4,0.5575]
[1736545815501,0.7765,3272.9,3272.4,0.0075]
[1736545815663,0.04261107,3272.6,3272.4,0.0075]
[1736545815863,0.7765,3272.9,3272.4,0.0075]
[1736545816039,0.04264381,3272.5,3272.4,0.0075]
[1736545816240,0.7765,3272.9,3272.4,0.0075]
[1736545816572,0.04264381,3272.5,3272.4,0.0075]
[1736545816760,0.7765,3272.9,3272.4,0.0075]
[1736545817379,0.04283057,3272.8,3272.4,0.0075]
[1736545817574,0.04283057,3272.8,3272.1,0.55]
[1736545817778,0.04283057,3272.8,3271.8,0.7607]
[1736545817779,3.05576,3272.6,3271.8,0.7607]
[1736545818080,0.04272631,3272.5,3271.8,0.7607]
[1736545818979,0.04272631,3272.5,3271.9,0.55]
[1736545828571,0.8113,3272.4,3271.8,0.55]
[1736545828793,0.04177344,3272.3,3271.6,0.5575]
[1736545829112,0.04177344,3272.3,3271.6,3.77363]
[1736545830201,0.04177344,3272.3,3271.8,0.5575]
[1736545832809,0.07900492,3272.3,3271.8,0.5575]
[1736545837121,0.8324,3272.2,3271.7,0.5575]
[1736545837363,5.61392152,3272.1,3271.3,0.7834]
[1736545837652,2.55777152,3271.8,3270.9,4.46598955]
[1736545837828,0.91047136,3271.7,3271.0,0.0075]
[1736545838688,0.91047136,3271.7,3271.0,0.5575]
[1736545838884,0.8324,3271.6,3270.8,0.215]
[1736545839085,0.8324,3271.6,3270.7,3.05742]
[1736545839086,3.05677,3271.5,3270.7,0.215]
[1736545839304,3.13461301,3271.5,3270.7,0.215]
[1736545839504,0.07784301,3271.5,3270.8,0.5575]
[1736545839888,0.8324,3271.4,3270.8,0.5575]
[1736545840329,0.07803615,3271.3,3270.8,0.5575]
[1736545841431,0.07803615,3271.3,3270.8,3.61483]
[1736545842520,0.07803615,3271.3,3270.8,0.5575]
[1736545847913,0.07803615,3271.3,3271.1,0.5575]
[1736545848273,0.8025,3271.7,3271.1,0.5575]
[1736545848572,0.07775484,3271.2,3271.1,0.5575]
[1736545848779,0.8025,3271.7,3271.1,0.5575]
[1736545849106,0.07801322,3271.6,3271.1,0.5575]
[1736545852454,0.07801322,3271.6,3270.9,0.55]
[1736545852654,0.07801322,3271.6,3271.0,0.0075]
[1736545853009,0.07801322,3271.6,3270.8,3.84991]
[1736545853010,0.8269,3271.5,3270.7,0.215]
[1736545853227,0.07792344,3271.4,3270.8,0.5575]
[1736545854843,0.07792344,3271.4,3270.8,0.0075]
[1736545857250,0.8269,3271.2,3270.4,1.88924208]
[1736545857446,0.07776249,3271.1,3270.4,1.88924208]
[1736545857749,0.07776249,3271.1,3270.4,0.5575]
[1736545858161,0.8269,3271.2,3270.4,0.5575]
[1736545858479,0.07776249,3271.1,3270.4,0.5575]
[1736545861235,0.07776249,3271.1,3270.4,1.002236]
[1736545863273,0.7959,3271.0,3270.4,1.002236]
[1736545863479,0.07763514,3270.9,3270.4,1.002236]
[1736545866482,0.07763514,3270.9,3270.1,3.27397]
[1736545866795,0.07763514,3270.9,3270.2,3.61534]
[1736545866796,0.8244,3270.8,3270.2,3.61534]
[1736545867088,0.07748695,3270.7,3270.2,3.61534]
[1736545867291,0.07748695,3270.7,3270.0,3.82677]
[1736545867456,0.8244,3270.5,3269.9,0.216]
[1736545867663,0.07689058,3270.4,3269.9,0.216]
[1736545867857,1.29000129,3270.4,3269.9,0.0075]
[1736545868208,0.8244,3270.3,3269.9,0.0075]
[1736545868577,0.07719836,3270.2,3269.8,0.0075]
[1736545868944,1.21311071,3270.2,3269.6,0.7687]
[1736545869285,1.21311071,3270.2,3269.2,8.95]
[1736545869286,0.8244,3269.9,3269.2,0.216]
[1736545869457,3.88262,3269.9,3269.3,0.0075]
[1736545869665,0.90057472,3269.8,3269.3,0.0075]
[1736545870145,0.8244,3269.7,3268.7,0.7687]
[1736545870507,0.90044728,3269.6,3268.8,0.5575]
[1736545870708,0.90044728,3269.6,3268.8,0.0075]
[1736545871386,0.90044728,3269.6,3268.8,3.06671]
[1736545872043,0.90044728,3269.6,3268.8,0.33882996]
[1736545872214,0.90044728,3269.6,3269.3,0.0075]
[1736545873254,0.90044728,3269.6,3268.7,3.27528]
[1736545873454,0.8244,3269.6,3269.1,3.05893]
[1736545873758,0.07576244,3269.5,3269.2,0.5575]
[1736545875409,0.07576244,3269.5,3269.1,0.5575]
[1736545878098,0.07576244,3269.5,3269.3,0.0075]
[1736545878309,0.07576244,3269.5,3269.3,3.06623]
[1736545878498,0.07576244,3269.5,3269.3,0.0075]
[1736545879817,0.07576244,3269.5,3269.2,0.5575]
[1736545883598,0.07576244,3269.5,3269.1,0.0075]
[1736545883928,0.777,3269.4,3268.7,6.05929]
[1736545884289,0.777,3269.4,3268.8,0.5575]
[1736545884290,0.07524298,3269.3,3268.8,0.5575]
[1736545884588,0.07524298,3269.3,3268.6,5.25]
[1736545884589,0.777,3269.2,3268.6,5.25]
[1736545885088,0.777,3269.2,3268.7,0.5575]
[1736545885517,0.07503285,3269.1,3268.6,0.5575]
[1736545885996,0.07503285,3269.1,3268.8,3.61664]
[1736545886317,0.07503285,3269.1,3269.0,4.44403]
[1736545886720,5.38,3269.7,3269.0,4.44403]
[1736545886926,0.777,3269.8,3269.4,0.5575]
[1736545887322,0.07520104,3269.7,3269.4,0.5575]
[1736545887731,0.777,3269.8,3269.4,0.5575]
[1736545887901,0.07513732,3269.6,3269.4,0.5575]
[1736545888097,0.777,3269.8,3269.4,0.5575]
[1736545888316,0.0750736,3269.5,3269.4,0.5575]
[1736545888538,0.777,3269.8,3269.4,0.5575]
[1736545889015,0.07520104,3269.7,3269.4,0.5575]
[1736545889418,0.777,3269.8,3269.4,0.5575]
[1736545889643,0.07513732,3269.6,3269.4,0.5575]
[1736545889845,0.777,3269.8,3269.4,0.5575]
[1736545890232,0.07520104,3269.7,3269.4,0.5575]
[1736545890529,0.777,3269.8,3269.4,0.5575]
[1736545890871,0.07513732,3269.6,3269.4,0.5575]
[1736545891027,0.777,3269.8,3269.4,0.5575]
[1736545891545,0.07520104,3269.7,3269.4,0.5575]
[1736545892147,0.07513732,3269.6,3269.4,0.5575]
[1736545892634,0.777,3269.8,3269.4,0.5575]
[1736545893121,0.07520104,3269.7,3269.4,0.5575]
[1736545893509,0.777,3269.8,3269.4,0.0075]
[1736545893856,0.07513732,3269.6,3269.4,0.0075]
[1736545894058,0.777,3269.8,3269.4,0.0075]
[1736545894262,0.07504696,3269.5,3269.4,0.0075]
[1736545894410,0.777,3269.8,3269.4,0.0075]
[1736545895043,0.07520104,3269.7,3269.4,0.0075]
[1736545895591,0.07513732,3269.6,3269.4,0.0075]
[1736545895886,0.777,3269.8,3269.4,0.0075]
[1736545896095,0.07520104,3269.7,3269.4,0.0075]
[1736545896392,0.777,3269.8,3269.4,0.0075]
[1736545896594,0.07513732,3269.6,3269.4,0.0075]
[1736545896900,0.0750736,3269.5,3269.4,0.0075]
[1736545897378,0.0750736,3269.5,3269.1,0.03058455]
[1736545897379,0.0750736,3269.5,3269.2,0.5575]
[1736545897567,0.777,3269.8,3269.2,0.5575]
[1736545897783,0.07500987,3269.4,3269.2,0.5575]
[1736545897980,0.777,3269.8,3269.2,0.5575]
[1736545898292,0.07520104,3269.7,3269.2,0.5575]
[1736545899085,0.07520104,3269.7,3269.2,1.02654846]
[1736545899245,0.07520104,3269.7,3269.2,4.08534846]
[1736545899757,0.07520104,3269.7,3269.6,0.0075]
[1736545899962,0.07520104,3269.7,3269.6,0.5575]
[1736545900183,0.8271,3270.2,3269.6,0.5575]
[1736545900483,0.0755236,3269.7,3269.6,0.5575]
[1736545900668,0.8271,3270.2,3269.6,0.5575]
[1736545900871,0.8271,3270.2,3270.0,0.3244764]
[1736545901190,0.07326098,3270.1,3270.0,0.3244764]
[1736545904299,0.07326098,3270.1,3270.0,1.7102764]
[1736545904464,0.7528,3270.5,3270.1,0.0075]
[1736545904797,0.07331143,3270.4,3270.1,0.0075]
[1736545909183,0.07331143,3270.4,3270.0,0.3244764]
[1736545909384,3.8839,3270.3,3270.0,0.3244764]
[1736545909738,3.95720032,3270.3,3270.0,0.3244764]
[1736545913278,0.89930032,3270.3,3270.0,0.3244764]
[1736545925318,0.07330032,3270.3,3270.0,0.3244764]
[1736545926019,1.21372493,3270.6,3270.0,0.3244764]
[1736545926220,0.07322149,3270.2,3270.0,0.3244764]
[1736545926420,1.21372493,3270.6,3270.0,0.3244764]
[1736545926752,1.21372493,3270.6,3270.0,0.3319764]
[1736545927052,0.0734539,3270.5,3270.0,0.3319764]
[1736545927254,4.27145493,3270.4,3270.0,0.3244764]
[1736545927553,0.798,3270.1,3270.0,0.3244764]
[1736545928053,0.87145616,3270.1,3270.0,0.3244764]
[1736545930153,0.07345616,3270.1,3270.0,0.3244764]
[1736545930656,0.8012,3270.4,3270.0,0.3244764]
[1736545930868,0.07328051,3270.1,3270.0,0.3319764]
[1736545931019,12.23869,3270.7,3270.0,0.3319764]
[1736545931219,0.07299528,3270.1,3270.0,0.3319764]
[1736545931443,9.1812,3270.7,3270.0,0.3244764]
[1736545931634,0.07299528,3270.1,3270.0,0.3244764]
[1736545931838,0.8012,3270.3,3270.0,0.3244764]
[1736545932045,0.07329984,3270.1,3270.0,0.3244764]
[1736545932240,0.8012,3270.3,3270.0,0.3244764]
[1736545932451,0.07327786,3270.1,3270.0,0.3244764]
[1736545932653,3.85903,3270.3,3270.0,0.3244764]
[1736545932855,0.07327786,3270.1,3270.0,0.3244764]
[1736545933072,3.85903,3270.3,3270.0,0.3244764]
[1736545933232,0.07327786,3270.1,3270.0,0.3244764]
[1736545933581,0.07324781,3270.1,3270.0,0.3244764]
[1736545933926,3.85903,3270.3,3270.0,0.3244764]
[1736545934170,0.07343158,3270.2,3270.0,0.3244764]
[1736545934673,3.85903,3270.3,3270.0,0.3244764]
[1736545934873,0.07337164,3270.1,3270.0,0.3244764]
[1736545935066,3.85903,3270.3,3270.0,0.3244764]
[1736545935242,0.07337164,3270.1,3270.0,0.3244764]
[1736545935446,3.85903,3270.3,3270.0,0.3244764]
[1736545935659,0.07337164,3270.1,3270.0,0.3244764]
[1736545935862,3.85903,3270.3,3270.0,0.3244764]
[1736545936039,0.07337164,3270.1,3270.0,0.3244764]
[1736545936238,3.85903,3270.3,3270.0,0.3244764]
[1736545936438,0.07337164,3270.1,3270.0,0.3244764]
[1736545936638,3.85903,3270.3,3270.0,0.3244764]
[1736545936831,0.07209831,3270.1,3270.0,0.3244764]
[1736545937036,3.85903,3270.3,3270.0,0.3244764]
[1736545937235,0.07209831,3270.1,3270.0,0.3244764]
[1736545937437,3.85903,3270.3,3270.0,0.3244764]
[1736545937685,0.07209831,3270.1,3270.0,0.3244764]
[1736545937837,3.85903,3270.3,3270.0,0.3244764]
[1736545938038,0.07209831,3270.1,3270.0,0.3244764]
[1736545938392,0.07192244,3270.1,3270.0,0.3244764]
[1736545938755,0.8012,3270.3,3270.0,0.3244764]
[1736545939096,0.0719262,3270.1,3270.0,0.3244764]
[1736545939559,3.85904,3270.3,3270.0,0.3244764]
[1736545939761,0.0719262,3270.1,3270.0,0.3244764]
[1736545939966,3.85904,3270.3,3270.0,0.3244764]
[1736545940273,0.0719262,3270.1,3270.0,0.3244764]
[1736545940450,3.85904,3270.3,3270.0,0.3244764]
[1736545940986,0.0719899,3270.2,3270.0,0.3244764]
[1736545941447,3.85904,3270.3,3270.0,0.3244764]
[1736545941649,0.0719262,3270.1,3270.0,0.3244764]
[1736545942151,3.85904,3270.3,3270.0,0.3244764]
[1736545942351,0.07190364,3270.1,3270.0,0.3244764]
[1736545942588,3.85904,3270.3,3270.0,0.3244764]
[1736545942790,0.07190364,3270.1,3270.0,0.3244764]
[1736545942975,3.85904,3270.3,3270.0,0.3244764]
[1736545943170,0.07190364,3270.1,3270.0,0.3244764]
[1736545943357,3.85904,3270.3,3269.6,0.7786]
[1736545943567,0.07190364,3270.1,3269.6,0.7786]
[1736545943882,0.07196734,3270.2,3269.6,0.7786]
[1736545944082,0.07183994,3270.0,3269.6,0.7786]
[1736545944285,0.07190364,3270.1,3269.6,1.163071]
[1736545944590,0.07183994,3270.0,3269.6,1.163071]
[1736545944990,0.8012,3270.3,3269.6,1.163071]
[1736545945193,0.07177623,3269.9,3269.6,0.7786]
[1736545945485,0.8012,3270.3,3269.6,0.7786]
[1736545945686,0.07171251,3269.8,3269.6,0.7786]
[1736545945999,0.0716488,3269.7,3269.6,0.7786]
[1736545946290,0.8012,3270.3,3269.6,0.7786]
[1736545946656,0.0719711,3270.2,3269.6,0.7786]
[1736545947291,0.0719711,3270.2,3269.2,0.216]
[1736545947292,3.1299411,3270.2,3269.3,0.8306]
[1736545948494,3.1299411,3270.2,3269.4,0.0075]
[1736545948698,0.0719711,3270.2,3269.5,0.8306]
[1736545949593,0.0719711,3270.2,3269.6,3.61594]
[1736545949893,0.0719711,3270.2,3269.7,0.444654]
[1736545951058,2.01332538,3270.5,3269.8,0.8306]
[1736545951602,0.07198914,3270.4,3269.8,0.8306]
[1736545953372,1.21382538,3270.3,3269.8,0.8306]
[1736545953775,0.07198197,3270.2,3269.8,0.8306]
[1736545954177,1.21382538,3270.3,3269.8,0.8306]
[1736545954401,0.07191451,3270.1,3269.8,0.8306]
[1736545954709,0.07197822,3270.2,3269.8,1.274504]
[1736545954875,0.0718508,3270.0,3269.8,1.274504]
[1736545955077,1.21382538,3270.3,3269.8,1.274504]
[1736545955286,0.07177206,3269.9,3269.8,1.274504]
[1736545955764,1.21382538,3270.3,3269.8,1.274504]
[1736545955966,0.07177206,3269.9,3269.8,0.8306]
[1736545956189,1.21382538,3270.3,3269.8,0.8306]
[1736545956498,0.06934044,3269.9,3269.8,0.8306]
[1736545956704,1.21382538,3270.3,3269.8,0.8306]
[1736545956886,0.06934044,3269.9,3269.8,0.8306]
[1736545957088,1.21382538,3270.3,3269.8,1.274504]
[1736545957291,0.06934044,3269.9,3269.8,0.8306]
[1736545957603,0.06953157,3270.2,3269.8,0.8306]
[1736545957791,0.06934044,3269.9,3269.8,0.8306]
[1736545957992,1.21382538,3270.3,3269.8,0.8306]
[1736545958194,0.06934044,3269.9,3269.8,0.8306]
[1736545958393,1.21382538,3270.3,3269.8,0.8306]
[1736545958394,1.21382538,3270.3,3269.8,1.274504]
[1736545958612,0.06934044,3269.9,3269.8,0.8306]
[1736545958786,5.07097538,3270.5,3269.8,0.8306]
[1736545958966,0.06933668,3269.9,3269.8,0.8306]
[1736545959162,5.07097538,3270.5,3269.8,0.8306]
[1736545959468,0.06965521,3270.4,3269.8,0.8306]
[1736545963708,0.06965521,3270.4,3270.1,3.05799]
[1736545963874,0.06965521,3270.4,3270.3,3.05782]
[1736545964066,0.788,3271.1,3270.4,3.06522]
[1736545964266,5.38,3271.3,3270.5,0.7998]
[1736545964671,2.00182538,3271.4,3270.6,0.0075]
[1736545964871,2.00182538,3271.4,3270.6,0.42531644]
[1736545965100,2.00182538,3271.4,3270.6,0.03807147]
[1736545965313,3.788,3271.4,3270.6,0.0075]
[1736545965974,0.788,3271.4,3270.5,0.7998]
[1736545966312,3.05689,3271.3,3270.5,0.7998]
[1736545969516,0.788,3271.4,3270.5,0.7998]
[1736545969718,0.788,3271.4,3270.6,0.38880732]
[1736545971234,3.8448,3271.4,3270.6,0.38880732]
[1736545972114,3.05689,3271.3,3270.6,0.38880732]
[1736545976038,0.0706163,3271.2,3270.6,0.38880732]
[1736545978345,0.0706163,3271.2,3270.5,0.7998]
[1736545979849,0.0706163,3271.2,3270.5,0.83037318]
[1736545980147,0.788,3271.4,3270.5,0.83037318]
[1736545980452,3.12772768,3271.3,3270.5,0.7998]
[1736545983261,3.12772768,3271.3,3270.5,0.83037317]
[1736545983959,3.12772768,3271.3,3270.5,0.7998]
[1736545985565,1.99997541,3270.9,3270.5,0.7998]
[1736545985768,0.07067692,3270.8,3270.1,0.8291]
[1736545986064,1.21307541,3270.7,3270.1,0.8291]
[1736545986459,0.07048571,3270.6,3270.1,0.8291]
[1736545990582,0.07048571,3270.6,3270.2,0.0075]
[1736545990787,4.21307541,3271.1,3270.5,0.0075]
[1736545991091,0.07069537,3271.0,3270.5,0.0075]
[1736545992236,0.07069537,3271.0,3270.6,0.7613]
[1736545992679,7.26979541,3271.5,3270.8,0.7613]
[1736545992888,0.07050068,3270.9,3270.8,0.7613]
[1736545993087,7.26979541,3271.5,3270.8,0.7613]
[1736545993295,0.07050068,3270.9,3270.8,0.7613]
[1736545993453,7.26979541,3271.5,3270.8,0.7613]
[1736545993653,0.07057953,3270.9,3270.8,0.7613]
[1736545994059,7.26979541,3271.5,3270.8,0.7613]
[1736545994257,0.07057953,3270.9,3270.8,0.7613]
[1736545994608,0.07057953,3270.9,3270.8,1.143933]
[1736545994800,7.26979541,3271.5,3270.8,1.143933]
[1736545995015,0.07057953,3270.9,3270.8,0.7613]
[1736545995142,0.07057953,3270.9,3270.8,0.7688]
[1736545995474,4.21307541,3271.5,3270.8,0.7688]
[1736545996005,0.07089785,3271.4,3270.8,0.7688]
[1736545997082,0.07089785,3271.4,3270.8,0.79937042]
[1736545997314,0.07089785,3271.4,3270.9,0.38568104]
[1736545998946,0.07089785,3271.4,3271.0,0.7799]
[1736545999348,0.07089785,3271.4,3271.2,0.7799]
[1736545999687,0.2225,3272.7,3271.3,0.81796723]
[1736545999688,3.05596,3272.3,3271.3,0.81796723]
[1736546000191,4.26913541,3272.2,3271.3,0.7874]
[1736546000479,1.21307541,3272.0,3271.3,1.171829]
[1736546000650,1.21307541,3272.0,3271.4,0.03056479]
[1736546001154,4.26913541,3272.2,3271.4,0.03056479]
[1736546002886,4.26913541,3272.2,3271.6,0.7558]
[1736546002887,1.21307541,3272.2,3271.6,0.7558]
[1736546003060,3.0,3272.3,3271.6,0.78636272]
[1736546003260,3.83789,3272.6,3271.7,0.7558]
[1736546003489,0.7822,3272.6,3271.7,0.7558]
[1736546003724,3.0,3272.4,3271.7,0.7558]
[1736546006011,0.07204349,3272.3,3271.7,0.7558]
[1736546008407,0.07204349,3272.3,3271.7,0.78636188]
[1736546009559,0.07204349,3272.3,3271.7,0.7558]
[1736546010678,0.07204349,3272.3,3271.7,0.78636188]
[1736546011283,3.05577,3272.5,3271.7,0.7558]
[1736546011484,0.07222756,3272.2,3271.7,0.7558]
[1736546011819,0.07216394,3272.1,3271.7,0.7558]
[1736546013598,0.07241103,3272.0,3271.7,0.7558]
[1736546013807,3.0559,3272.4,3271.7,0.7558]
[1736546013957,0.0723474,3271.9,3271.7,0.7558]
[1736546014264,3.0559,3272.4,3271.7,0.7558]
[1736546014471,0.07228378,3271.8,3271.7,0.7633]
[1736546014690,9.19483,3272.9,3272.0,0.0075]
[1736546014858,9.19483,3272.9,3272.1,0.7973]
[1736546015153,0.07265023,3272.8,3272.1,0.7973]
[1736546015357,3.12813023,3272.8,3272.1,0.7973]
[1736546019540,0.07265023,3272.8,3272.1,0.7973]
[1736546019837,3.05571,3272.6,3272.1,0.7973]
[1736546020035,0.31283602,3272.6,3271.4,6.05674]
[1736546020212,0.31283602,3272.6,3271.6,0.7752]
[1736546020213,0.84142848,3272.5,3271.6,0.7752]
[1736546020930,3.05602,3272.3,3271.6,0.7752]
[1736546021435,0.0726742,3272.2,3271.6,0.7752]
[1736546022549,3.1287342,3272.2,3271.6,0.7752]
[1736546022832,3.44160762,3272.2,3271.6,0.7752]
[1736546025246,2.94617807,3272.2,3271.6,0.7752]
[1736546025422,3.05651,3271.7,3271.0,0.8173]
[1736546025930,0.07220529,3271.6,3271.1,0.0075]
[1736546026752,0.8014,3271.8,3271.1,0.0075]
[1736546026964,5.61698045,3271.9,3271.2,0.7706]
[1736546027166,0.07226892,3271.7,3271.2,0.7706]
[1736546027484,0.07220529,3271.6,3271.2,0.7706]
[1736546027775,5.61698045,3271.9,3271.2,0.7706]
[1736546028277,0.07231026,3271.8,3271.2,0.7706]
[1736546029381,3.05653,3271.7,3271.2,0.7706]
[1736546029739,0.07220529,3271.6,3271.2,0.7706]
[1736546031384,3.36703045,3271.9,3271.2,0.7706]
[1736546031385,6.42337045,3271.9,3271.2,0.7706]
[1736546031747,0.07220122,3271.8,3271.2,0.7706]
[1736546041428,1.21273801,3271.6,3271.2,0.7706]
[1736546041633,0.07189024,3271.5,3271.2,0.7706]
[1736546044003,0.07189024,3271.5,3271.4,0.808]
[1736546044321,1.21273801,3272.1,3271.6,0.808]
[1736546045439,3.0,3272.2,3271.6,0.808]
[1736546047141,6.05606,3272.2,3271.6,0.808]
[1736546048831,3.0,3272.2,3271.6,0.808]
[1736546049065,2.56133064,3272.0,3271.0,0.7695]
[1736546049372,3.05642,3271.8,3271.0,0.7695]
[1736546050265,3.05642,3271.8,3271.1,0.0075]
[1736546050581,3.05642,3271.8,3271.2,0.8085]
[1736546051068,0.06949786,3271.7,3271.2,0.8085]
[1736546053373,5.61764064,3272.0,3271.2,0.8085]
[1736546053679,3.05632,3271.9,3271.2,0.8085]
[1736546053833,3.12594512,3271.9,3271.2,0.8085]
[1736546057034,3.05642,3271.8,3271.2,0.8085]
[1736546057247,0.06947909,3271.7,3271.2,0.8085]
[1736546057544,3.05676,3271.5,3271.2,0.8085]
[1736546057749,0.305676,3271.4,3270.6,0.8136]
[1736546058084,0.0694848,3271.4,3270.7,0.0075]
[1736546058239,3.1262948,3271.4,3270.7,0.0075]
[1736546061437,0.0694848,3271.4,3270.6,0.8136]
[1736546061638,2.56133064,3271.4,3270.6,0.8136]
[1736546061949,3.05698,3271.2,3270.6,0.8136]
[1736546062357,0.06918879,3271.1,3270.7,0.03807384]
[1736546062561,0.06918879,3271.1,3270.8,0.7637]
[1736546062894,3.8509,3271.9,3271.2,0.7637]
[1736546066028,0.06945922,3271.8,3271.2,0.7637]
[1736546066786,3.05654,3271.7,3271.2,0.7637]
[1736546066999,0.06942952,3271.6,3271.2,0.7637]
[1736546070335,3.05677,3271.5,3270.8,0.7704]
[1736546070507,3.86447,3271.5,3270.8,0.7704]
[1736546070712,0.06909643,3271.4,3270.8,0.7704]
[1736546070906,3.12588643,3271.4,3270.8,0.7704]
[1736546080207,0.06909643,3271.4,3270.8,0.7704]
[1736546080514,3.0,3271.3,3270.5,0.801]
[1736546080707,0.7932,3271.2,3270.5,0.801]
[1736546080903,0.85974374,3271.2,3270.5,0.801]
[1736546081104,3.05707,3271.1,3270.5,0.801]
[1736546081317,1.21319803,3271.0,3270.5,0.801]
[1736546081508,1.27961445,3271.0,3270.5,0.801]
[1736546083458,0.06641642,3271.0,3270.5,0.801]
[1736546083828,3.12360642,3271.0,3270.5,0.801]
[1736546084175,3.12360642,3271.0,3269.6,6.05846]
[1736546084176,0.06641642,3271.0,3270.2,0.7698]
[1736546084656,3.05743,3270.8,3270.2,0.7698]
[1736546084954,0.06627765,3270.7,3270.2,0.7698]
[1736546087052,3.05719,3271.0,3270.2,0.7698]
[1736546087251,0.06621398,3270.6,3270.2,0.7698]
[1736546087554,0.0661503,3270.5,3270.2,0.7698]
[1736546087731,3.05719,3271.0,3270.2,0.7698]
[1736546087919,0.06608662,3270.4,3270.2,0.7698]
[1736546088120,3.05719,3271.0,3270.2,0.7698]
[1736546088429,0.06602293,3270.3,3270.2,0.7698]